fUST/lending_fUST_20251002
["ID","MTS","AMOUNT","RATE_DAILY","PERIOD"]
[388770709,1759353068728,-500.0,0.00021917,2]
[388770710,1759353068742,-500.0,0.00021917,2]
[388770711,1759353068757,-500.0,0.00021917,2]
[388770712,1759353068775,-500.0,0.00021917,2]
[388770713,1759353068791,-500.0,0.00021917,2]
[388770714,1759353068805,-500.0,0.00021917,2]
[388770715,1759353068820,-506.6,0.00021917,2]
[388770716,1759353068835,-500.0,0.00021917,2]
[388770717,1759353068851,-465.27,0.00021917,2]
[388770718,1759353068865,-500.0,0.00021917,2]
[388770719,1759353068880,-1599.29,0.00021917,2]
[388770720,1759353068894,-500.0,0.00021917,2]
[388770721,1759353068909,-500.0,0.00021917,2]
[388770722,1759353068923,-500.0,0.00021917,2]
[388770723,1759353068937,-500.0,0.00021917,2]
[388770724,1759353068951,-547.51,0.00021917,2]
[388770725,1759353068967,-500.0,0.00021917,2]
[388770726,1759353068983,-500.0,0.00021917,2]
[388770727,1759353068996,-500.0,0.00021917,2]
[388770728,1759353069011,-480.78,0.00021917,2]
[388770729,1759353069024,-500.0,0.00021917,2]
[388770730,1759353069039,-500.0,0.00021917,2]
[388770731,1759353069053,-480.0,0.00021917,2]
[388770732,1759353069068,-500.0,0.00021917,2]
[388770733,1759353069082,-213.57931004,0.00021917,2]
[388770734,1759353069096,-174.81956706,0.00021917,2]
[388770735,1759353069111,-500.0,0.00021917,2]
[388770736,1759353069126,-500.0,0.00021917,2]
[388770737,1759353069142,-500.0,0.00021917,2]
[388770738,1759353069158,-500.0,0.00021917,2]
[388770739,1759353069173,-500.0,0.00021917,2]
[388770740,1759353069188,-500.0,0.00021917,2]
[388770741,1759353069202,-500.0,0.00021917,2]
[388770742,1759353069216,-3070.33,0.00021917,2]
[388770743,1759353069231,-500.0,0.00021917,2]
[388770744,1759353069246,-500.0,0.00021917,2]
[388770745,1759353069260,-573.49,0.00021917,2]
[388770746,1759353069275,-802.11,0.00021917,2]
[388770747,1759353069289,-480.0,0.00021917,2]
[388770748,1759353069303,-480.0,0.00021917,2]
[388770749,1759353069317,-5486.32,0.00021917,2]
[388770750,1759353069331,-495.46,0.00021917,2]
[388770751,1759353069347,-500.0,0.00021917,2]
[388770752,1759353069361,-500.0,0.00021917,2]
[388770753,1759353069375,-500.0,0.00021917,2]
[388770754,1759353069389,-874.01,0.00021917,2]
[388770755,1759353069403,-641.21,0.00021917,2]
[388770756,1759353069417,-500.0,0.00021917,2]
[388770757,1759353069434,-500.0,0.00021917,2]
[388770758,1759353069548,-500.0,0.00021917,2]
[388770759,1759353069562,-480.0,0.00021917,2]
[388770760,1759353069571,-500.0,0.00021917,2]
[388770761,1759353069580,-500.0,0.00021917,2]
[388770762,1759353069590,-500.0,0.00021917,2]
[388770763,1759353069599,-500.0,0.00021917,2]
[388770764,1759353069609,-500.0,0.00021917,2]
[388770765,1759353069618,-500.0,0.00021917,2]
[388770766,1759353069627,-500.0,0.00021917,2]
[388770767,1759353069637,-586.38,0.00021917,2]
[388770768,1759353069646,-500.0,0.00021917,2]
[388770769,1759353069655,-500.0,0.00021917,2]
[388770770,1759353069664,-500.0,0.00021917,2]
[388770771,1759353069674,-500.0,0.00021917,2]
[388770772,1759353069683,-513.68,0.00021917,2]
[388770773,1759353069692,-896.29,0.00021917,2]
[388770774,1759353069701,-500.0,0.00021917,2]
[388770775,1759353069710,-507.73,0.00021917,2]
[388770776,1759353069719,-480.0,0.00021917,2]
[388770777,1759353069729,-500.0,0.00021917,2]
[388770778,1759353069738,-500.0,0.00021917,2]
[388770779,1759353069748,-924.21,0.00021917,2]
[388770780,1759353069757,-500.0,0.00021917,2]
[388770781,1759353069766,-589.98,0.00021917,2]
[388770782,1759353069775,-519.3,0.00021917,2]
[388770783,1759353069784,-500.0,0.00021917,2]
[388770784,1759353069794,-480.0,0.00021917,2]
[388770785,1759353069803,-595.09,0.00021917,2]
[388770786,1759353069811,-500.0,0.00021917,2]
[388770787,1759353069821,-500.0,0.00021917,2]
[388770788,1759353069830,-480.0,0.00021917,2]
[388770789,1759353069839,-564.54,0.00021917,2]
[388770790,1759353069848,-515.37,0.00021917,2]
[388770791,1759353069857,-500.0,0.00021917,2]
[388770792,1759353069866,-500.0,0.00021917,2]
[388770793,1759353069876,-500.0,0.00021917,2]
[388770794,1759353069885,-500.0,0.00021917,2]
[388770795,1759353069894,-480.0,0.00021917,2]
[388770796,1759353069903,-513.32,0.00021917,2]
[388770797,1759353069912,-838.22,0.00021917,2]
[388770798,1759353069921,-152.004238,0.00021918,2]
[388770799,1759353069930,-151.0,0.00021918,2]
[388770800,1759353069939,-151.0,0.00021918,2]
[388770801,1759353069948,-151.0,0.00021918,2]
[388770802,1759353069957,-151.0,0.00021918,2]
[388770803,1759353069966,-190.0,0.00021918,6]
[388770804,1759353069976,-400.0,0.00021918,2]
[388770805,1759353069985,-1232.55927127,0.00021984,2]
[388770806,1759353069994,-6744.87,0.00022,2]
[388770807,1759353070004,-4000.0,0.00022,4]
[388770808,1759353070014,-500.0,0.00022002,2]
[388770809,1759353070023,-910.98424207,0.00022002,2]
[388770810,1759353070032,-1000.0,0.00022002,2]
[388770811,1759353070041,-500.0,0.00022002,2]
[388770812,1759353070050,-360.0,0.00022071,2]
[388770813,1759353070059,-1000.0,0.00022098,2]
[388770814,1759353070068,-1000.0,0.00022098,2]
[388770815,1759353070077,-500.0,0.00022098,2]
[388770816,1759353070086,-1000.0,0.00022098,2]
[388770817,1759353070095,-480.0,0.00022191,2]
[388770818,1759353070105,-463.34,0.00022191,2]
[388770819,1759353070114,-500.0,0.00022191,2]
[388770820,1759353070124,-401.89,0.00022191,2]
[388770821,1759353070133,-500.0,0.00022191,2]
[388770822,1759353070141,-461.04,0.00022191,2]
[388770823,1759353070150,-500.0,0.00022191,2]
[388770824,1759353070159,-500.0,0.00022191,2]
[388770825,1759353070169,-500.0,0.00022191,2]
[388770826,1759353070178,-500.0,0.00022191,2]
[388770827,1759353070188,-500.0,0.00022191,2]
[388770828,1759353070197,-500.0,0.00022191,2]
[388770829,1759353070206,-500.0,0.00022191,2]
[388770830,1759353070215,-500.0,0.00022191,2]
[388770831,1759353070224,-191.34,0.00022191,2]
[388770832,1759353070234,-500.0,0.00022191,2]
[388770833,1759353070243,-500.0,0.00022191,2]
[388770834,1759353070252,-500.0,0.00022191,2]
[388770835,1759353070261,-500.0,0.00022191,2]
[388770836,1759353070271,-500.0,0.00022191,2]
[388770837,1759353070281,-500.0,0.00022191,2]
[388770838,1759353070290,-500.0,0.00022191,2]
[388770839,1759353070299,-500.0,0.00022191,2]
[388770840,1759353070309,-500.0,0.00022191,2]
[388770841,1759353070318,-571.20898117,0.00022191,2]
[388770842,1759353070328,-578.23,0.00022191,2]
[388770843,1759353070337,-500.0,0.00022191,2]
[388770844,1759353070347,-480.0,0.00022191,2]
[388770845,1759353070356,-500.0,0.00022191,2]
[388770846,1759353070366,-500.0,0.00022191,2]
[388770847,1759353070376,-500.0,0.00022191,2]
[388770848,1759353070385,-500.0,0.00022191,2]
[388770849,1759353070394,-480.0,0.00022191,2]
[388770850,1759353070403,-495.25,0.00022191,2]
[388770851,1759353070413,-506.6,0.00022191,2]
[388770852,1759353070423,-480.0,0.00022191,2]
[388770853,1759353070435,-500.0,0.00022191,2]
[388770854,1759353070444,-1599.29,0.00022191,2]
[388770855,1759353070453,-480.0,0.00022191,2]
[388770856,1759353070463,-500.0,0.00022191,2]
[388770857,1759353070473,-500.0,0.00022191,2]
[388770858,1759353070482,-480.0,0.00022191,2]
[388770859,1759353070493,-547.51,0.00022191,2]
[388770860,1759353070504,-500.0,0.00022191,2]
[388770861,1759353070514,-500.0,0.00022191,2]
[388770862,1759353070524,-490.42,0.00022191,2]
[388770863,1759353070534,-500.0,0.00022191,2]
[388770864,1759353070543,-480.0,0.00022191,2]
[388770865,1759353070553,-480.0,0.00022191,2]
[388770866,1759353070563,-500.0,0.00022191,2]
[388770867,1759353070572,-284.8628637,0.00022191,2]
[388770868,1759353070581,-480.0,0.00022191,2]
[388770869,1759353070590,-500.0,0.00022191,2]
[388770870,1759353070599,-500.0,0.00022191,2]
[388770871,1759353070608,-480.0,0.00022191,2]
[388770872,1759353070617,-3070.33,0.00022191,2]
[388770873,1759353070627,-500.0,0.00022191,2]
[388770874,1759353070637,-500.0,0.00022191,2]
[388770875,1759353070646,-802.11,0.00022191,2]
[388770876,1759353070655,-5486.32,0.00022191,2]
[388770877,1759353070664,-500.0,0.00022191,2]
[388770878,1759353070674,-430.4,0.00022191,2]
[388770879,1759353070683,-500.0,0.00022191,2]
[388770880,1759353070692,-874.01,0.00022191,2]
[388770881,1759353070701,-500.0,0.00022191,2]
[388770882,1759353070710,-500.0,0.00022191,2]
[388770883,1759353070719,-500.0,0.00022191,2]
[388770884,1759353070729,-545.16,0.00022191,2]
[388770885,1759353070739,-500.0,0.00022191,2]
[388770886,1759353070748,-500.0,0.00022191,2]
[388770887,1759353070757,-500.0,0.00022191,2]
[388770888,1759353070767,-500.0,0.00022191,2]
[388770889,1759353070776,-500.0,0.00022191,2]
[388770890,1759353070785,-500.0,0.00022191,2]
[388770891,1759353070795,-586.38,0.00022191,2]
[388770892,1759353070804,-500.0,0.00022191,2]
[388770893,1759353070813,-500.0,0.00022191,2]
[388770894,1759353070823,-500.0,0.00022191,2]
[388770895,1759353070832,-392.51,0.00022191,2]
[388770896,1759353070841,-896.29,0.00022191,2]
[388770897,1759353070850,-500.0,0.00022191,2]
[388770898,1759353070859,-500.0,0.00022191,2]
[388770899,1759353070869,-500.0,0.00022191,2]
[388770900,1759353070879,-924.21,0.00022191,2]
[388770901,1759353070888,-500.0,0.00022191,2]
[388770902,1759353070897,-167.51,0.00022191,2]
[388770903,1759353070906,-595.09,0.00022191,2]
[388770904,1759353070915,-500.0,0.00022191,2]
[388770905,1759353070924,-500.0,0.00022191,2]
[388770906,1759353070933,-500.0,0.00022191,2]
[388770907,1759353070942,-500.0,0.00022191,2]
[388770908,1759353070951,-380.19693214,0.00022191,2]
[388770909,1759353070960,-500.0,0.00022191,2]
[388770910,1759353070970,-513.32,0.00022191,2]
[388770911,1759353070979,-151.0,0.000223,7]
[388770912,1759353070988,-1229.0,0.00022319,2]
[388770913,1759353070998,-587.0,0.00022319,2]
[388770914,1759353071008,-178.454584,0.00022381,7]
[388770915,1759353071017,-430.98,0.00022465,2]
[388770916,1759353071026,-163.48,0.00022465,2]
[388770917,1759353071035,-516.22666989,0.00022465,2]
[388770918,1759353071122,-500.0,0.00022465,2]
[388770919,1759353071131,-500.0,0.00022465,2]
[388770920,1759353071141,-500.0,0.00022465,2]
[388770921,1759353071150,-500.0,0.00022465,2]
[388770922,1759353071160,-500.0,0.00022465,2]
[388770923,1759353071169,-500.0,0.00022465,2]
[388770924,1759353071179,-500.0,0.00022465,2]
[388770925,1759353071188,-500.0,0.00022465,2]
[388770926,1759353071198,-500.0,0.00022465,2]
[388770927,1759353071207,-467.65,0.00022465,2]
[388770928,1759353071216,-198.69093922,0.00022465,2]
[388770929,1759353071226,-500.0,0.00022465,2]
[388770930,1759353071235,-500.0,0.00022465,2]
[388770931,1759353071245,-500.0,0.00022465,2]
[388770932,1759353071254,-500.0,0.00022465,2]
[388770933,1759353071263,-622.93265074,0.00022465,2]
[388770934,1759353071273,-500.0,0.00022465,2]
[388770935,1759353071283,-500.0,0.00022465,2]
[388770936,1759353071292,-628.52,0.00022465,2]
[388770937,1759353071300,-343.0263642,0.00022465,2]
[388770938,1759353071310,-483.12,0.00022465,2]
[388770939,1759353071319,-506.6,0.00022465,2]
[388770940,1759353071328,-500.0,0.00022465,2]
[388770941,1759353071337,-1599.29,0.00022465,2]
[388770942,1759353071347,-500.0,0.00022465,2]
[388770943,1759353071356,-500.0,0.00022465,2]
[388770944,1759353071366,-547.51,0.00022465,2]
[388770945,1759353071376,-590.08,0.00022465,2]
[388770946,1759353071385,-500.0,0.00022465,2]
[388770947,1759353071395,-159.17651839,0.00022465,2]
[388770948,1759353071404,-500.0,0.00022465,2]
[388770949,1759353071413,-500.0,0.00022465,2]
[388770950,1759353071424,-500.0,0.00022465,2]
[388770951,1759353071436,-3070.33,0.00022465,2]
[388770952,1759353071446,-500.0,0.00022465,2]
[388770953,1759353071456,-500.0,0.00022465,2]
[388770954,1759353071467,-802.11,0.00022465,2]
[388770955,1759353071476,-5486.32,0.00022465,2]
[388770956,1759353071486,-500.0,0.00022465,2]
[388770957,1759353071494,-611.7441434,0.00022465,2]
[388770958,1759353071505,-874.01,0.00022465,2]
[388770959,1759353071514,-500.0,0.00022465,2]
[388770960,1759353071523,-500.0,0.00022465,2]
[388770961,1759353071533,-500.0,0.00022465,2]
[388770962,1759353071542,-151.0,0.00022465,7]
[388770963,1759353071552,-151.0,0.00022465,7]
[388770964,1759353071561,-500.0,0.00022465,2]
[388770965,1759353071572,-500.0,0.00022465,2]
[388770966,1759353071581,-500.0,0.00022465,2]
[388770967,1759353071591,-500.0,0.00022465,2]
[388770968,1759353071601,-496.853556,0.00022465,7]
[388770969,1759353071610,-496.853556,0.00022465,7]
[388770970,1759353071620,-151.0,0.00022465,7]
[388770971,1759353071629,-259.072052,0.00022465,7]
[388770972,1759353071638,-496.853556,0.00022465,7]
[388770973,1759353071647,-151.0,0.00022465,7]
[388770974,1759353071656,-496.853556,0.00022465,7]
[388770975,1759353071666,-500.0,0.00022465,2]
[388770976,1759353071675,-500.0,0.00022465,2]
[388770977,1759353071684,-181.77683,0.00022465,7]
[388770978,1759353071694,-586.38,0.00022465,2]
[388770979,1759353071702,-181.77683,0.00022465,7]
[388770980,1759353071712,-375.74,0.00022465,2]
[388770981,1759353071722,-181.77683,0.00022465,7]
[388770982,1759353071731,-500.0,0.00022465,2]
[388770983,1759353071740,-181.77683,0.00022465,7]
[388770984,1759353071749,-500.0,0.00022465,2]
[388770985,1759353071758,-896.29,0.00022465,2]
[388770986,1759353071768,-500.0,0.00022465,2]
[388770987,1759353071777,-500.0,0.00022465,2]
[388770988,1759353071786,-518.15,0.00022465,2]
[388770989,1759353071796,-924.21,0.00022465,2]
[388770990,1759353071805,-500.0,0.00022465,2]
[388770991,1759353071814,-595.09,0.00022465,2]
[388770992,1759353071823,-500.0,0.00022465,2]
[388770993,1759353071832,-500.0,0.00022465,2]
[388770994,1759353071842,-500.0,0.00022465,2]
[388770995,1759353071851,-500.0,0.00022465,2]
[388770996,1759353071860,-380.79,0.00022465,2]
[388770997,1759353071869,-513.32,0.00022465,2]
[388770998,1759353071879,-2351.0,0.00022537,2]
[388770999,1759353071888,-500.0,0.0002255,2]
[388771000,1759353071898,-460.0,0.00022619,2]
[388771001,1759353071907,-376.44418485,0.00022646,2]
[388771002,1759353071917,-314.43405764,0.00022646,2]
[388771003,1759353071926,-300.0,0.0002265,2]
[388771004,1759353071936,-214.58,0.00022739,2]
[388771005,1759353071945,-222.56,0.00022739,2]
[388771006,1759353071955,-500.0,0.00022739,2]
[388771007,1759353071964,-500.0,0.00022739,2]
[388771008,1759353071973,-500.0,0.00022739,2]
[388771009,1759353071982,-500.0,0.00022739,2]
[388771010,1759353071991,-500.0,0.00022739,2]
[388771011,1759353072000,-500.0,0.00022739,2]
[388771012,1759353072011,-500.0,0.00022739,2]
[388771013,1759353072020,-500.0,0.00022739,2]
[388771014,1759353072029,-500.0,0.00022739,2]
[388771015,1759353072038,-151.0,0.00022739,7]
[388771016,1759353072048,-506.6,0.00022739,2]
[388771017,1759353072056,-500.0,0.00022739,2]
[388771018,1759353072066,-1599.29,0.00022739,2]
[388771019,1759353072075,-500.0,0.00022739,2]
[388771020,1759353072085,-547.51,0.00022739,2]
[388771021,1759353072094,-500.0,0.00022739,2]
[388771022,1759353072103,-500.0,0.00022739,2]
[388771023,1759353072112,-500.0,0.00022739,2]
[388771024,1759353072120,-3070.33,0.00022739,2]
[388771025,1759353072130,-802.11,0.00022739,2]
[388771026,1759353072138,-5486.32,0.00022739,2]
[388771027,1759353072148,-874.01,0.00022739,2]
[388771028,1759353072157,-500.0,0.00022739,2]
[388771029,1759353072167,-426.9,0.00022739,2]
[388771030,1759353072175,-500.0,0.00022739,2]
[388771031,1759353072185,-500.0,0.00022739,2]
[388771032,1759353072195,-500.0,0.00022739,2]
[388771033,1759353072204,-500.0,0.00022739,2]
[388771034,1759353072213,-586.38,0.00022739,2]
[388771035,1759353072223,-896.29,0.00022739,2]
[388771036,1759353072231,-500.0,0.00022739,2]
[388771037,1759353072240,-924.21,0.00022739,2]
[388771038,1759353072250,-500.0,0.00022739,2]
[388771039,1759353072259,-595.09,0.00022739,2]
[388771040,1759353072268,-500.0,0.00022739,2]
[388771041,1759353072277,-500.0,0.00022739,2]
[388771042,1759353072286,-500.0,0.00022739,2]
[388771043,1759353072295,-513.32,0.00022739,2]
[388771044,1759353072304,-151.0,0.000228,5]
[388771045,1759353072313,-979.0,0.00022824,2]
[388771046,1759353072322,-2156.0,0.00022824,2]
[388771047,1759353072331,-630.0,0.00022824,2]
[388771048,1759353072340,-410.0,0.00022824,2]
[388771049,1759353072351,-428.711,0.00022824,2]
[388771050,1759353072360,-233.9640895,0.00023,3]
[388771051,1759353072369,-233.9640895,0.00023,3]
[388771052,1759353072379,-296.333,0.00023012,2]
[388771053,1759353072388,-500.0,0.00023013,2]
[388771054,1759353072399,-500.0,0.00023013,2]
[388771055,1759353072408,-500.0,0.00023013,2]
[388771056,1759353072419,-506.6,0.00023013,2]
[388771057,1759353072433,-500.0,0.00023013,2]
[388771058,1759353072443,-1599.29,0.00023013,2]
[388771059,1759353072452,-151.0,0.00023013,7]
[388771060,1759353072461,-151.0,0.00023013,7]
[388771061,1759353072471,-151.0,0.00023013,7]
[388771062,1759353072480,-500.0,0.00023013,2]
[388771063,1759353072489,-151.0,0.00023013,7]
[388771064,1759353072499,-151.0,0.00023013,7]
[388771065,1759353072584,-547.51,0.00023013,2]
[388771066,1759353072594,-151.0,0.00023013,7]
[388771067,1759353072603,-151.0,0.00023013,7]
[388771068,1759353072612,-500.0,0.00023013,2]
[388771069,1759353072621,-500.0,0.00023013,2]
[388771070,1759353072631,-500.0,0.00023013,2]
[388771071,1759353072639,-3070.33,0.00023013,2]
[388771072,1759353072648,-151.0,0.00023013,7]
[388771073,1759353072658,-802.11,0.00023013,2]
[388771074,1759353072667,-5486.32,0.00023013,2]
[388771075,1759353072676,-874.01,0.00023013,2]
[388771076,1759353072686,-338.51639644,0.00023013,2]
[388771077,1759353072695,-500.0,0.00023013,2]
[388771078,1759353072704,-500.0,0.00023013,2]
[388771079,1759353072714,-586.38,0.00023013,2]
[388771080,1759353072723,-896.29,0.00023013,2]
[388771081,1759353072732,-924.21,0.00023013,2]
[388771082,1759353072741,-500.0,0.00023013,2]
[388771083,1759353072750,-595.09,0.00023013,2]
[388771084,1759353072759,-500.0,0.00023013,2]
[388771085,1759353072768,-500.0,0.00023013,2]
[388771086,1759353072777,-381.8783002,0.00023013,2]
[388771087,1759353072786,-513.32,0.00023013,2]
[388771088,1759353072795,-1007.41023035,0.00023046,2]
[388771089,1759353072805,-560.0,0.00023167,2]
[388771090,1759353072814,-600.0,0.00023198,2]
[388771091,1759353072823,-152.480235,0.00023287,7]
[388771092,1759353072832,-151.0,0.00023287,7]
[388771093,1759353072841,-151.0,0.00023287,7]
[388771094,1759353072850,-153.489656,0.00023287,7]
[388771095,1759353072859,-151.0,0.00023287,7]
[388771096,1759353072868,-280.0,0.00023287,7]
[388771097,1759353072877,-500.0,0.00023287,2]
[388771098,1759353072886,-151.0,0.00023287,7]
[388771099,1759353072895,-151.0,0.00023287,7]
[388771100,1759353072905,-500.0,0.00023287,2]
[388771101,1759353072914,-151.0,0.00023287,7]
[388771102,1759353072923,-500.0,0.00023287,2]
[388771103,1759353072933,-506.6,0.00023287,2]
[388771104,1759353072942,-500.0,0.00023287,2]
[388771105,1759353072951,-1599.29,0.00023287,2]
[388771106,1759353072960,-500.0,0.00023287,2]
[388771107,1759353072971,-547.51,0.00023287,2]
[388771108,1759353072981,-500.0,0.00023287,2]
[388771109,1759353072990,-500.0,0.00023287,2]
[388771110,1759353072999,-500.0,0.00023287,2]
[388771111,1759353073008,-3070.33,0.00023287,2]
[388771112,1759353073017,-802.11,0.00023287,2]
[388771113,1759353073026,-5486.32,0.00023287,2]
[388771114,1759353073035,-874.01,0.00023287,2]
[388771115,1759353073044,-500.0,0.00023287,2]
[388771116,1759353073053,-500.0,0.00023287,2]
[388771117,1759353073063,-586.38,0.00023287,2]
[388771118,1759353073072,-896.29,0.00023287,2]
[388771119,1759353073081,-924.21,0.00023287,2]
[388771120,1759353073091,-500.0,0.00023287,2]
[388771121,1759353073100,-595.09,0.00023287,2]
[388771122,1759353073110,-500.0,0.00023287,2]
[388771123,1759353073119,-500.0,0.00023287,2]
[388771124,1759353073128,-513.32,0.00023287,2]
[388771125,1759353073138,-864.0,0.00023298,20]
[388771126,1759353073148,-150.0,0.00023337,2]
[388771127,1759353073157,-150.0,0.00023337,2]
[388771128,1759353073167,-168.0,0.00023378,2]
[388771129,1759353073176,-151.0,0.000234,5]
[388771130,1759353073185,-250.0,0.00023418,2]
[388771131,1759353073195,-600.0,0.0002352,2]
[388771132,1759353073204,-500.0,0.00023561,2]
[388771133,1759353073214,-282.37417328,0.00023561,2]
[388771134,1759353073224,-500.0,0.00023561,2]
[388771135,1759353073233,-506.6,0.00023561,2]
[388771136,1759353073242,-500.0,0.00023561,2]
[388771137,1759353073253,-1599.29,0.00023561,2]
[388771138,1759353073262,-500.0,0.00023561,2]
[388771139,1759353073272,-547.51,0.00023561,2]
[388771140,1759353073283,-500.0,0.00023561,2]
[388771141,1759353073292,-500.0,0.00023561,2]
[388771142,1759353073302,-500.0,0.00023561,2]
[388771143,1759353073312,-3070.33,0.00023561,2]
[388771144,1759353073321,-802.11,0.00023561,2]
[388771145,1759353073330,-5486.32,0.00023561,2]
[388771146,1759353073340,-874.01,0.00023561,2]
[388771147,1759353073349,-500.0,0.00023561,2]
[388771148,1759353073358,-500.0,0.00023561,2]
[388771149,1759353073368,-586.38,0.00023561,2]
[388771150,1759353073377,-896.29,0.00023561,2]
[388771151,1759353073387,-924.21,0.00023561,2]
[388771152,1759353073396,-500.0,0.00023561,2]
[388771153,1759353073406,-595.09,0.00023561,2]
[388771154,1759353073415,-500.0,0.00023561,2]
[388771155,1759353073426,-500.0,0.00023561,2]
[388771156,1759353073436,-513.32,0.00023561,2]
[388771157,1759353073446,-192.0,0.00023562,10]
[388771158,1759353073455,-168.0,0.00023699,2]
[388771159,1759353073463,-6744.87,0.000237,2]
[388771160,1759353073473,-660.0,0.00023715,2]
[388771161,1759353073483,-900.0,0.00023746,2]
[388771162,1759353073492,-168.0,0.00023757,2]
[388771163,1759353073505,-168.0,0.00023764,2]
[388771164,1759353073514,-600.0,0.00023765,2]
[388771165,1759353073523,-168.0,0.00023803,2]
[388771166,1759353073533,-168.0,0.00023811,2]
[388771167,1759353073542,-500.0,0.00023835,2]
[388771168,1759353073552,-500.0,0.00023835,2]
[388771169,1759353073561,-506.6,0.00023835,2]
[388771170,1759353073570,-151.0,0.00023835,7]
[388771171,1759353073580,-360.25743524,0.00023835,2]
[388771172,1759353073589,-1599.29,0.00023835,2]
[388771173,1759353073598,-500.0,0.00023835,2]
[388771174,1759353073608,-547.51,0.00023835,2]
[388771175,1759353073617,-500.0,0.00023835,2]
[388771176,1759353073627,-500.0,0.00023835,2]
[388771177,1759353073636,-500.0,0.00023835,2]
[388771178,1759353073645,-3070.33,0.00023835,2]
[388771179,1759353073655,-802.11,0.00023835,2]
[388771180,1759353073664,-5486.32,0.00023835,2]
[388771181,1759353073674,-874.01,0.00023835,2]
[388771182,1759353073684,-500.0,0.00023835,2]
[388771183,1759353073694,-162.06178964,0.00023835,2]
[388771184,1759353073704,-586.38,0.00023835,2]
[388771185,1759353073713,-896.29,0.00023835,2]
[388771186,1759353073724,-924.21,0.00023835,2]
[388771187,1759353073734,-500.0,0.00023835,2]
[388771188,1759353073744,-595.09,0.00023835,2]
[388771189,1759353073753,-500.0,0.00023835,2]
[388771190,1759353073762,-548.41023813,0.00023835,2]
[388771191,1759353073772,-682.04779063,0.0002389,2]
[388771192,1759353073782,-200.0,0.0002389,3]
[388771193,1759353073791,-151.0,0.000239,9]
[388771194,1759353073800,-168.0,0.00023923,2]
[388771195,1759353073809,-168.0,0.00023974,2]
[388771196,1759353073818,-4000.0,0.00024,4]
[388771197,1759353073829,-233.9640895,0.00024,7]
[388771198,1759353073838,-925.79557311,0.0002401,2]
[388771199,1759353073848,-168.0,0.00024037,2]
[388771200,1759353073934,-168.0,0.00024075,2]
[388771201,1759353073944,-500.0,0.00024109,2]
[388771202,1759353073953,-500.0,0.00024109,2]
[388771203,1759353073962,-231.01920898,0.00024109,2]
[388771204,1759353074307,5000.0,0.00018778,2]
[388771205,1759353075418,-27.74315035,0.00019178,10]
[388771206,1759353075659,-172.25684965,0.00019178,10]
[388771207,1759353075669,-200.0,0.00019178,10]
[388771208,1759353075683,-37.29832612,0.00019178,10]